fUSD/lending_fUSD_20240503
["ID","MTS","AMOUNT","RATE_DAILY","PERIOD"]
[325326952,1714728644509,-26322.78261812,0.000349,2]
[325326953,1714728644518,-500.0,0.00034944,10]
[325326954,1714728644528,-900.0,0.00034944,10]
[325326955,1714728644537,-50000.0,0.00035,15]
[325326956,1714728644547,-50000.0,0.00035,25]
[325326957,1714728644556,-16428.56692108,0.00035,4]
[325326958,1714728644566,-20264.57057044,0.00035,6]
[325326959,1714728644575,-20264.53630455,0.00035,6]
[325326960,1714728644584,-20265.28554298,0.00035,6]
[325326961,1714728644594,-20264.28855675,0.00035,6]
[325326962,1714728644604,-11676.68009441,0.00035,4]
[325326963,1714728644614,-1000.0,0.00035,2]
[325326964,1714728644623,-155.3652562,0.00035,15]
[325326965,1714728644633,-22906.90281255,0.00035,4]
[325326966,1714728644642,-674.99038721,0.00035,30]
[325326967,1714728644651,-500.0,0.00035,120]
[325326968,1714728644661,-150.0,0.00035046,120]
[325326969,1714728644670,-192.21723297,0.00035093,2]
[325326970,1714728644679,-1479.09423533,0.00035093,2]
[325326971,1714728644689,-1000.0,0.00035171,2]
[325326972,1714728644699,-2954.0,0.000352,2]
[325326973,1714728644708,-1226.01241372,0.000354,2]
[325326974,1714728644718,-150.0,0.00035433,2]
[325326975,1714728644728,-6413.88803787,0.000355,2]
[325326976,1714728645461,-491.32,0.00027969,10]
[325326977,1714728645471,-82.13,0.00029009,2]
[325326978,1714728645483,-67.87,0.00029009,2]
[325326979,1714728645493,-1120.11519668,0.00031,3]
[325326980,1714728645503,-15344.71483078,0.000355,2]
[325326981,1714728645514,-12806.53,0.000355,2]
[325326982,1714728645525,-4100.4399,0.000355,2]
[325326983,1714728645537,-281.186742,0.000355,2]
[325326984,1714728645548,-4462.03153099,0.000355,2]
[325326985,1714728645560,-961.065,0.000355,2]
[325326986,1714728645579,-716.93386457,0.000355,2]
[325326987,1714728645591,-4055.82535952,0.000355,2]
[325326988,1714728645626,-151.63499927,0.0003097,2]
[325326989,1714728645635,-195.71339929,0.000355,2]
[325326990,1714728645652,-578.10074129,0.000355,2]
[325327030,1714728647073,-150.0,0.00029613,2]
[325327033,1714728647082,-150.0,0.0003023,2]
[325327035,1714728647092,-5.552031,0.000355,2]
[325327043,1714728647160,-1223.7000002,0.000355,2]
[325327045,1714728647171,-627183.18171511,0.000355,2]
[325327053,1714728648441,-150.0,0.0003086,2]
[325327054,1714728648450,-150.0,0.00031503,2]
[325327055,1714728648460,-150.0,0.00034704,2]
[325327056,1714728648470,-419.06,0.00034704,2]
[325327057,1714728648479,-150.56,0.00034704,2]
[325327058,1714728648489,-770.18,0.000355,2]
[325327059,1714728648560,-1580.17931807,0.000355,2]
[325327060,1714728648572,-1624.10752,0.000355,2]
[325327061,1714728648587,-10287.61815,0.000355,2]
[325327062,1714728648675,-673.88867996,0.000355,2]
[325327146,1714729331098,616.92891468,0.00010798,2]
[325327147,1714729331125,616.92891468,0.00010798,2]
[325327148,1714729331152,616.92891468,0.00010798,2]
[325327149,1714729331179,616.92891468,0.00010798,2]
[325327150,1714729331204,16987.65501192,0.00010798,2]
[325327482,1714729733336,250.93300738,0.00010798,2]
[325327483,1714729786852,-150.0,0.00028955,30]
[325327484,1714729786876,-685.0,0.00028955,30]
[325327485,1714729786899,-189.0,0.00028955,30]
[325327486,1714729796634,-252.71,0.00028258,120]
[325327487,1714729796658,-150.0,0.00028518,120]
[325327488,1714729796681,-150.0,0.00028709,120]
[325327489,1714729796708,-431.87984043,0.0003,30]
[325327490,1714729796731,-150.0,0.00030141,120]
[325327491,1714729796757,-252.71,0.0003179,120]
[325327492,1714729796783,-155.0,0.00033725,60]
[325327493,1714729796804,-515.76758785,0.00033725,120]
[325327494,1714729796831,-674.99038721,0.00035,30]
[325327495,1714729796857,-252.71,0.00035322,120]
[325327496,1714729796880,-492.8521724,0.000355,120]
[325327497,1714729796904,-803.6000842,0.000356,30]
[325327498,1714729796929,-150.0,0.00035661,120]
[325327499,1714729796956,-3554.0,0.00037,60]
[325327500,1714729796981,-368.22,0.00037554,120]
[325327501,1714729797007,-179.25586493,0.00038,120]
[325327502,1714729797035,-252.71,0.00038854,120]
[325327503,1714729797057,-881.87566879,0.000389,30]
[325327504,1714729797078,-1000.0,0.00038904,120]
[325327505,1714729797100,-1000.0,0.00039,120]
[325327506,1714729797124,-224.82421257,0.00039,30]
[325327507,1714729797146,-344.12482532,0.00039234,31]
[325327508,1714729797170,-150.0,0.00039399,30]
[325327509,1714729797490,-50000.0,0.0004,30]
[325327510,1714729797513,-11335.6268394,0.0004,90]
[325327511,1714729797536,-668.51905549,0.0004,120]
[325327512,1714729797559,-260.0,0.0004,30]
[325327513,1714729797582,-642.43211615,0.0004,120]
[325327514,1714729797605,-680.0,0.0004,120]
[325327515,1714729797626,-1464.32360073,0.0004,30]
[325327516,1714729797648,-768.37,0.0004,120]
[325327517,1714729797669,-287.04767932,0.0004,120]
[325327518,1714729797691,-222.47886,0.00040088,30]
[325327519,1714729797714,-222.47886,0.00040288,30]
[325327520,1714729797737,-3909.4,0.00040327,79]
[325327521,1714729797759,-222.47886,0.00040488,30]
[325327522,1714729797781,-222.47886,0.00040688,30]
[325327523,1714729797804,-747.0,0.00040779,30]
[325327524,1714729797830,-368.22,0.00040968,120]
[325327525,1714729797852,-467.10634467,0.00040993,120]
[325327526,1714729797877,-50000.0,0.00041,31]
[325327527,1714729797900,-771.24,0.00041,120]
[325327528,1714729797923,-260.0,0.00041,30]
[325327529,1714729797946,-455.17117466,0.00041,30]
[325327530,1714729797968,-222.47886,0.00041088,30]
[325327531,1714729797990,-510.0,0.00041095,120]
[325327532,1714729798013,-207.42160459,0.000411,60]
[325327533,1714729798035,-747.0,0.00041199,30]
[325327534,1714729798058,-222.47886,0.00041288,30]
[325327535,1714729798080,-510.0,0.00041369,120]
[325327536,1714729798102,-222.47886,0.00041488,30]
[325327537,1714729798124,-260.0,0.000415,30]
[325327538,1714729798147,-1400.0,0.0004152,30]
[325327539,1714729798168,-900.0,0.0004152,30]
[325327540,1714729798191,-500.0,0.0004152,30]
[325327541,1714729798214,-427.62518345,0.00041575,30]
[325327542,1714729798235,-747.0,0.0004162,30]
[325327543,1714729798258,-510.0,0.00041643,120]
[325327544,1714729798279,-222.47886,0.00041688,30]
[325327545,1714729798300,-582.94363769,0.00041917,120]
[325327546,1714729798325,-50000.0,0.00042,32]
[325327547,1714729798346,-497.8524063,0.00042,120]
[325327548,1714729798369,-1000000.0,0.00042,60]
[325327549,1714729798392,-804948.63883385,0.00042,60]
[325327550,1714729811368,-182.0,0.000325,32]
[325327551,1714729811408,-194.0,0.0003396,35]
[325327552,1714729811466,-195051.36116615,0.00042,60]
[325327553,1714729811493,-1000000.0,0.00042,60]
[325327554,1714729811518,-804572.63883385,0.00042,60]
[325327555,1714729826379,-515.76758785,0.00033,120]
[325327556,1714729826428,-881.87566879,0.000389,30]
[325327557,1714729826459,-195427.36116615,0.00042,60]
[325327558,1714729826484,-1000000.0,0.00042,60]
[325327559,1714729826507,-803174.99557721,0.00042,60]
[325327560,1714729829966,-267.439,0.00040854,30]
[325327561,1714729829993,-196825.00442279,0.00042,60]
[325327562,1714729830016,-708.9088801,0.00042,120]
[325327563,1714729830040,-260.0,0.00042,30]
[325327564,1714729830088,-261.01,0.00042,120]
[325327565,1714729830128,-627.72418064,0.0004204,30]
[325327566,1714729830163,-481.11807916,0.0004204,30]
[325327567,1714729830189,-747.0,0.0004204,30]
[325327568,1714729830213,-1466.10212947,0.0004204,30]
[325327569,1714729830238,-1400.0,0.00042068,30]
[325327570,1714729830261,-1100.0,0.00042068,30]
[325327571,1714729830284,-900.0,0.00042068,30]
[325327572,1714729830307,-500.0,0.00042068,30]
[325327573,1714729830331,-25000.0,0.000423,120]
[325327574,1714729830357,-150.0,0.000423,30]
[325327575,1714729830380,-154.11931542,0.000423,30]
[325327576,1714729830406,-150.0,0.000423,30]
[325327577,1714729830436,-252.71,0.00042387,120]
[325327578,1714729830461,-150.0,0.00042396,30]
[325327579,1714729830487,-405.81,0.000424,30]
[325327580,1714729830511,-430.84928547,0.000424,120]
[325327581,1714729830960,-2000.0,0.000424,31]
[325327582,1714729830992,-747.0,0.0004246,30]
[325327583,1714729831016,-150.0,0.00042492,30]
[325327584,1714729831038,-260.0,0.000425,30]
[325327585,1714729831063,-150.0,0.00042517,120]
[325327586,1714729831090,-150.0,0.00042588,30]
[325327587,1714729831116,-1400.0,0.00042616,30]
[325327588,1714729831140,-1100.0,0.00042616,30]
[325327589,1714729831163,-900.0,0.00042616,30]
[325327590,1714729831186,-500.0,0.00042616,30]
[325327591,1714729831209,-568.94655023,0.0004267,30]
[325327592,1714729831234,-150.0,0.00042684,30]
[325327593,1714729831256,-150.0,0.0004278,30]
[325327594,1714729831279,-150.0,0.00042876,30]
[325327595,1714729831300,-747.0,0.00042881,30]
[325327596,1714729831324,-150.0,0.00042971,30]
[325327597,1714729831352,-50000.0,0.00043,33]
[325327598,1714729831376,-1000000.0,0.00043,60]
[325327599,1714729831406,-708489.25815672,0.00043,60]
[325327607,1714729832078,-156.77121027,0.00016897,2]
[325327609,1714729832088,-155.0,0.00016997,2]
[325327610,1714729832097,-4138.95434842,0.00016997,2]
[325327612,1714729832123,-441.23700119,0.00016997,2]
[325327613,1714729832136,-633.16573653,0.00016997,2]
[325327614,1714729832254,-4069.02801231,0.00016997,2]
[325327615,1714729832266,-8599.99745466,0.00016997,2]
[325327616,1714729832278,-648.56859254,0.00016997,2]
[325327617,1714729832290,-2493.21,0.00016997,2]
[325327618,1714729832331,-313.93500653,0.00016997,2]
[325327619,1714729832343,-572.39943818,0.00016997,2]
[325327620,1714729832356,-4147.36848739,0.00016997,2]
[325327621,1714729832382,-1759.89915318,0.00016997,2]
[325327622,1714729832396,-613.511994,0.00016997,2]
[325327641,1714729837892,-19840.1776307,0.00016997,2]
[325327643,1714729837904,-6406.37244272,0.00016997,2]
[325327644,1714729837916,-1029.27,0.00016997,2]
[325327646,1714729837928,-741.3170906,0.00016997,2]
[325327648,1714729837940,-1000.00663,0.00016997,2]
[325327650,1714729837952,-995.94,0.00016997,2]
[325327652,1714729837963,-7777.74976624,0.00016997,2]
[325327659,1714729838057,-110866.72822073,0.00016997,2]
[325327661,1714729838067,-546.96745632,0.00016997,2]
[325327662,1714729838077,-408.68643751,0.00016997,2]
[325327663,1714729838087,-1282.0,0.00017,2]
[325327664,1714729838097,-150.0,0.00017863,2]
[325327665,1714729838107,-3307.76,0.0001788,2]
[325327666,1714729838117,-164.09578582,0.0001788,2]
[325327667,1714729838127,-187.25856921,0.0001788,2]
[325327668,1714729838136,-450.0,0.00018,3]
[325327669,1714729838146,-499.99,0.00018,2]
[325327670,1714729838156,-2537.59,0.00019452,2]
[325327671,1714729838166,-500.0,0.0002,3]
[325327672,1714729838176,-155.0,0.0002,2]
[325327673,1714729838186,-155.0,0.0002,2]
[325327674,1714729838195,-3187.99,0.00020546,2]
[325327675,1714729838206,-192.21,0.00021644,2]
[325327676,1714729838216,-993.88022221,0.000219,2]
[325327677,1714729838228,-550.0,0.00022,3]
[325327678,1714729838238,-600.0,0.00024,3]
[325327679,1714729838247,-525.0,0.00024,3]
[325327680,1714729838257,-250.0,0.00024824,2]
[325327681,1714729838267,-250.0,0.00024893,2]
[325327682,1714729838276,-150.0,0.00024912,2]
[325327683,1714729838286,-5000.0,0.00025,2]
[325327684,1714729838296,-658.30878006,0.00025178,2]
[325327685,1714729838306,-155.46650369,0.00025178,5]
[325327686,1714729838315,-163.76,0.00026493,2]
[325327687,1714729838325,-163.69417388,0.00026922,2]
[325327688,1714729838335,-150.0,0.00027,2]
[325327689,1714729838345,-150.39,0.00027397,2]
[325327690,1714729838354,-23900.0,0.00027639,2]
[325327691,1714729838364,-288.0,0.0002765,2]
[325327692,1714729838374,-150.0,0.0002765,2]
[325327693,1714729838385,-246.7715,0.00027815,2]
[325327694,1714729838397,-175.546445,0.00027915,2]
[325327695,1714729838408,-186.414321,0.00027915,2]
[325327696,1714729838417,-439.854216,0.00027915,2]
[325327697,1714729838428,-162.801231,0.00027915,2]
[325327698,1714729838438,-200.323747,0.00027915,2]
[325327699,1714729838447,-155.32848151,0.00027976,2]
[325327700,1714729838457,-360.01550888,0.00027976,10]
[325327701,1714729838467,-374.20185831,0.00027976,2]
[325327702,1714729838485,-240.639882,0.00028127,2]
[325327703,1714729838495,-439.854216,0.00028264,2]
[325327704,1714729838505,-150.39,0.0002831,2]
[325327705,1714729838515,-186.414321,0.0002838,2]
[325327706,1714729838525,-439.854216,0.00028613,2]
[325327707,1714729838536,-162.801231,0.00028613,2]
[325327708,1714729838546,-186.414321,0.00028845,2]
[325327709,1714729838556,-150.0,0.00028924,2]
[325327710,1714729838566,-151.51173512,0.00028955,2]
[325327711,1714729838576,-151.51173512,0.00028955,2]
[325327712,1714729838586,-439.854216,0.00028962,2]
[325327713,1714729838596,-500.0,0.00028984,2]
[325327714,1714729838606,-500.0,0.00028984,2]
[325327715,1714729838616,-286970.56637246,0.00028985,2]
[325327716,1714729838626,-459.40433121,0.00028992,2]
[325327717,1714729838638,-158.03,0.00029099,2]
[325327718,1714729838648,-158.03,0.00029107,2]
[325327719,1714729838659,-158.03,0.00029115,2]
[325327720,1714729838670,-158.03,0.00029122,2]
[325327721,1714729838680,-158.03,0.0002913,2]
[325327722,1714729838690,-158.03,0.00029138,2]
[325327723,1714729838700,-158.03,0.00029145,2]
[325327724,1714729838710,-158.03,0.00029153,2]
[325327725,1714729838722,-158.03,0.00029161,2]
[325327726,1714729838732,-158.03,0.00029168,2]
[325327727,1714729838741,-158.03,0.00029176,2]
[325327728,1714729838751,-158.03,0.00029184,2]
[325327729,1714729838762,-158.03,0.00029191,2]
[325327730,1714729838772,-158.03,0.00029199,2]
[325327731,1714729838782,-158.03,0.00029207,2]
[325327732,1714729838791,-158.03,0.00029214,2]
[325327733,1714729838801,-158.03,0.00029222,2]
[325327734,1714729838811,-150.39,0.00029224,2]
[325327735,1714729838821,-158.03,0.0002923,2]
[325327736,1714729838831,-158.03,0.00029237,2]
[325327737,1714729838841,-181.37,0.00029238,2]
[325327738,1714729838851,-158.03,0.00029245,2]
[325327739,1714729838861,-439.854216,0.0002931,2]
[325327740,1714729838871,-175.546445,0.0002931,2]
[325327741,1714729838880,-162.801231,0.0002931,2]
[325327742,1714729838890,-186.414321,0.0002931,2]
[325327743,1714729838901,-187.25856921,0.00029399,2]
[325327744,1714729838911,-150.0,0.00029527,2]
[325327745,1714729838920,-175.33,0.00029958,2]
[325327746,1714729838930,-151.0,0.00029964,2]
[325327747,1714729838941,-1000.0,0.00029996,2]
[325327748,1714729838951,-1784.62766335,0.0003,2]
[325327749,1714729838960,-155.0,0.0003,4]
[325327750,1714729838972,-2223.0,0.0003,3]
[325327751,1714729838983,-157.94898776,0.0003,4]
[325327752,1714729838993,-150.39,0.00030137,2]
[325327753,1714729839003,-150.0,0.00030142,2]
[325327754,1714729839013,-180.0,0.00030329,2]
[325327755,1714729839024,-288.0,0.0003065,2]
[325327756,1714729839034,-150.0,0.0003077,2]
[325327757,1714729839044,-459.40433115,0.00030836,2]
[325327758,1714729839054,-1000.0,0.00030979,2]
[325327759,1714729839064,-1000.0,0.00030979,2]
[325327760,1714729839075,-1000.0,0.00030979,2]
[325327761,1714729839086,-1000.0,0.00030979,2]
[325327762,1714729839096,-1000.0,0.00030979,2]
[325327763,1714729839106,-1000.0,0.00030979,2]
[325327764,1714729839116,-1000.0,0.00030979,2]
[325327765,1714729839125,-1000.0,0.00030979,2]
[325327766,1714729839135,-1000.0,0.00030979,2]
[325327767,1714729839145,-1000.0,0.00030979,2]
[325327768,1714729839155,-1000.0,0.00030979,2]
[325327769,1714729839165,-300.0,0.00030979,2]
[325327770,1714729839175,-492.26920761,0.00031,5]
[325327771,1714729839184,-150.39,0.0003105,2]
[325327772,1714729839194,-150.0,0.00031411,2]
[325327773,1714729839205,-1000.0,0.00031495,10]
[325327774,1714729839215,-414.63,0.00031644,2]
[325327775,1714729839228,-150.39,0.00031963,2]
[325327776,1714729839238,-332.6433445,0.00032,4]
[325327777,1714729839248,-150.0,0.00032065,2]
[325327778,1714729839258,-1000.0,0.00032239,10]
[325327779,1714729839268,-500.0,0.00032239,2]
[325327780,1714729839279,-200.0,0.00032239,2]
[325327781,1714729839289,-459.40433115,0.0003268,2]
[325327782,1714729839300,-163.69417389,0.00032694,7]
[325327783,1714729839310,-150.0,0.00032733,2]
[325327784,1714729839320,-2500.0,0.00032876,2]
[325327785,1714729839330,-2500.0,0.00032876,2]
[325327786,1714729839340,-858.62029432,0.00032876,2]
[325327787,1714729839350,-1797.01,0.00032876,2]
[325327788,1714729839360,-1797.01,0.00032876,2]
[325327789,1714729839370,-1797.01,0.00032876,2]
[325327790,1714729839380,-1797.01,0.00032876,2]
[325327791,1714729839394,-1797.01,0.00032876,2]
[325327792,1714729839405,-1797.01,0.00032876,2]
[325327793,1714729839415,-1797.01,0.00032876,2]
[325327794,1714729839427,-1797.01,0.00032876,2]
[325327795,1714729839437,-1797.01,0.00032876,2]
[325327796,1714729839449,-1797.01,0.00032876,2]
[325327797,1714729839459,-1797.01,0.00032876,2]
[325327798,1714729839471,-1797.01,0.00032876,2]
[325327799,1714729839481,-1797.01,0.00032876,2]
[325327800,1714729839491,-1797.01,0.00032876,2]
[325327801,1714729839501,-1797.01,0.00032876,2]
[325327802,1714729839511,-1797.01,0.00032876,2]
[325327803,1714729839521,-1797.01,0.00032876,2]
[325327804,1714729839531,-1797.01,0.00032876,2]
[325327805,1714729839541,-1797.01,0.00032876,2]
[325327806,1714729839551,-1797.01,0.00032876,2]
[325327807,1714729839560,-1797.01,0.00032876,2]
[325327808,1714729839570,-1797.01,0.00032876,2]
[325327809,1714729839579,-1797.01,0.00032876,2]
[325327810,1714729839589,-1797.19033372,0.00032876,2]
[325327811,1714729839599,-500.0,0.00032876,2]
[325327812,1714729839608,-150.39,0.00032877,2]
[325327813,1714729839618,-37719.81,0.00032877,2]
[325327814,1714729839627,-56209.2,0.00032877,2]
[325327815,1714729839637,-321.85,0.00032877,2]
[325327816,1714729839647,-1692.746253,0.00033,2]
[325327817,1714729839658,-152.0,0.00033395,3]
[325327818,1714729839668,-2539.72041204,0.000334,2]
[325327819,1714729839678,-150.0,0.00033415,2]
[325327820,1714729839687,-288.0,0.0003365,2]
[325327821,1714729839697,-5689.84975491,0.0003367,2]
[325327822,1714729839706,-5000.0,0.0003367,2]
[325327823,1714729839716,-5000.0,0.0003367,2]
[325327824,1714729839727,-5000.0,0.0003367,2]
[325327825,1714729839736,-5000.0,0.0003367,2]
[325327826,1714729839746,-300.0,0.00033719,2]
[325327827,1714729839755,-1000.0,0.00033727,15]
[325327828,1714729839764,-1000.0,0.00033746,2]
[325327829,1714729839775,-150.39,0.0003379,2]
[325327830,1714729839785,-1600.0,0.000339,12]
[325327831,1714729839794,-757.49729662,0.000339,2]
[325327832,1714729839804,-1053.0,0.00034,5]
[325327833,1714729839814,-150.0,0.00034111,2]
[325327834,1714729839823,-7500.0,0.00034405,2]
[325327835,1714729839834,-500.0,0.000345,2]
[325327836,1714729839845,-500.0,0.000345,2]
[325327837,1714729839856,-500.0,0.000345,2]
[325327838,1714729839866,-500.0,0.000345,2]
[325327839,1714729839876,-500.0,0.000345,2]
[325327840,1714729839886,-500.0,0.000345,2]
[325327841,1714729839896,-500.0,0.000345,2]
[325327842,1714729839905,-500.0,0.000345,2]
[325327843,1714729839915,-500.0,0.000345,2]
[325327844,1714729839925,-500.0,0.000345,2]
[325327845,1714729839936,-500.0,0.000345,2]
[325327846,1714729839946,-500.0,0.000345,2]
[325327847,1714729839955,-500.0,0.000345,2]
[325327848,1714729839965,-500.0,0.000345,2]
[325327849,1714729839977,-500.0,0.000345,2]
[325327850,1714729839986,-500.0,0.000345,2]
[325327851,1714729839995,-500.0,0.000345,2]
[325327852,1714729840005,-500.0,0.000345,2]
[325327853,1714729840014,-500.0,0.000345,2]
[325327854,1714729840024,-500.0,0.000345,2]
[325327855,1714729840034,-500.0,0.000345,2]
[325327856,1714729840043,-500.0,0.000345,2]
[325327857,1714729840052,-500.0,0.000345,2]
[325327858,1714729840062,-500.0,0.000345,2]
[325327859,1714729840072,-500.0,0.000345,2]
[325327860,1714729840081,-500.0,0.000345,2]
[325327861,1714729840091,-500.0,0.000345,2]
[325327862,1714729840101,-500.0,0.000345,2]
[325327863,1714729840110,-500.0,0.000345,2]
[325327864,1714729840120,-500.0,0.000345,2]
[325327865,1714729840129,-500.0,0.000345,2]
[325327866,1714729840139,-500.0,0.000345,2]
[325327867,1714729840148,-500.0,0.000345,2]
[325327868,1714729840158,-500.0,0.000345,2]
[325327869,1714729840168,-500.0,0.000345,2]
[325327870,1714729840177,-500.0,0.000345,2]
[325327871,1714729840187,-500.0,0.000345,2]
[325327872,1714729840197,-500.0,0.000345,2]
[325327873,1714729840206,-500.0,0.000345,2]
[325327874,1714729840215,-500.0,0.000345,2]
[325327875,1714729840226,-500.0,0.000345,2]
[325327876,1714729840236,-500.0,0.000345,2]
[325327877,1714729840245,-500.0,0.000345,2]
[325327878,1714729840255,-500.0,0.000345,2]
[325327879,1714729840264,-500.0,0.000345,2]
[325327880,1714729840274,-500.0,0.000345,2]
[325327881,1714729840284,-500.0,0.000345,2]
[325327883,1714729840294,-500.0,0.000345,2]
[325327884,1714729840303,-500.0,0.000345,2]
[325327885,1714729840313,-473.07,0.000345,2]
[325327886,1714729840323,-500.0,0.000345,2]
[325327887,1714729840333,-500.0,0.000345,2]
[325327888,1714729840342,-500.0,0.000345,2]
[325327889,1714729840352,-500.0,0.000345,2]
[325327890,1714729840362,-500.0,0.000345,2]
[325327891,1714729840371,-500.0,0.000345,2]
[325327893,1714729840381,-500.0,0.000345,2]
[325327895,1714729840738,-500.0,0.000345,2]
[325327896,1714729840749,-500.0,0.000345,2]
[325327897,1714729840759,-243.48,0.000345,2]
[325327898,1714729840769,-10000.0,0.000345,3]
[325327899,1714729840779,-500.0,0.00034504,2]
[325327900,1714729840789,-206440.0,0.00034505,5]
[325327901,1714729840798,-459.40433115,0.00034524,2]
[325327902,1714729840808,-150.0,0.00034548,10]
[325327903,1714729840818,-612.69849491,0.00034598,2]
[325327904,1714729840827,-151.87422436,0.0003469,2]
[325327905,1714729840836,-1314.5977,0.000347,120]
[325327906,1714729840846,-150.39,0.00034703,2]
[325327907,1714729840855,-1011.16462222,0.0003479,5]
[325327908,1714729840866,-1146.62515885,0.0003479,5]
[325327909,1714729840875,-2861.52,0.000348,2]
[325327910,1714729840884,-2861.52,0.000348,2]
[325327911,1714729840895,-2861.52,0.000348,2]
[325327912,1714729840904,-150.0,0.00034822,2]
[325327913,1714729840913,-26326.18487517,0.000349,2]
[325327914,1714729840923,-173.55712462,0.000349,2]
[325327915,1714729840932,-3200.0,0.000349,12]
[325327916,1714729840941,-757.49729662,0.000349,2]
[325327917,1714729840951,-50000.0,0.00035,15]
[325327918,1714729840961,-50000.0,0.00035,25]
[325327919,1714729840972,-246.57722587,0.00035,4]
[325327920,1714729840982,-266.209288,0.00035,15]
[325327921,1714729840991,-1843.61671499,0.00035,7]
[325327922,1714729841001,-3494.67959516,0.00035184,2]
[325327923,1714729841010,-1000.0,0.00035215,15]
[325327924,1714729841020,-449.45341563,0.00035273,2]
[325327925,1714729841029,-342.0,0.000354,9]
[325327926,1714729841038,-685.0,0.000354,9]
[325327927,1714729841048,-685.0,0.000354,9]
[325327928,1714729841057,-500.0,0.000354,9]
[325327929,1714729841066,-479.0,0.000354,20]
[325327930,1714729841075,-150.0,0.000354,9]
[325327931,1714729841085,-1008.38,0.000354,2]
[325327932,1714729841094,-309.36,0.000354,2]
[325327933,1714729841104,-36684.0,0.0003549,4]
[325327934,1714729841113,-5853.8102457,0.00035499,2]
[325327935,1714729841122,-300.02,0.00035499,2]
[325327936,1714729841132,-1080.6872873,0.00035499,2]
[325327937,1714729841141,-1051.7972661,0.00035499,2]
[325327938,1714729841151,-6498.52626891,0.00035499,2]
[325327939,1714729841167,-27442.14529989,0.00035499,2]
[325327940,1714729841176,-7264.2808705,0.00035499,2]
[325327941,1714729841186,-34223.5676443,0.00035499,2]
[325327942,1714729841196,-12166.70948198,0.000355,2]
[325327943,1714729841205,-155.0,0.000355,2]
[325327944,1714729841214,-155.0,0.000355,2]
[325327945,1714729841224,-1606.02195512,0.000355,5]
[325327946,1714729841234,-4123.24250626,0.000355,4]
[325327947,1714729841243,-213.0,0.000355,2]
[325327948,1714729841252,-810.83379342,0.000355,14]
[325327949,1714729841263,-482.3671683,0.000355,2]
[325327950,1714729841274,-288.72057434,0.000355,4]
[325327951,1714729841284,-1786.30021,0.000355,2]
[325327952,1714729841294,-500.0,0.000355,2]
[325327953,1714729841303,-500.0,0.000355,2]
[325327954,1714729841313,-500.0,0.000355,2]
[325327955,1714729841324,-500.0,0.000355,2]
[325327956,1714729841334,-305.41978521,0.00035523,2]
[325327957,1714729841345,-150.0,0.00035547,2]
[325327958,1714729841354,-151.51506521,0.00035606,8]
[325327959,1714729841363,-300.0,0.00035614,15]
[325327960,1714729841373,-150.39,0.00035616,2]
[325327961,1714729841383,-227.37049148,0.0003569,2]
[325327962,1714729841398,-151.87422436,0.00035713,2]
[325327963,1714729841407,-374.90178616,0.0003584,10]
[325327964,1714729841417,-1002.83341055,0.00035884,2]